Cogmind - Beta 9.4 @@@ ROGUE MODE // 2020.03.22 @ 12:24:20 Player: JerichoBot Result: Destroyed by S-10 Pest with Light Assault Rifle Performance ------------- Evolutions (0) 0 Regions Visited (1) 200 Robots Destroyed (5) 25 Value Destroyed (50) 50 Prototype IDs (0) 0 Alien Tech Used (0) 0 Bonus (0) 0 TOTAL SCORE: 275 Bonus ------- None Cogmind --------- Core Integrity 0/250 Matter 292/300 Energy 100/100 System Corruption 0% Temperature Cool (0) Movement Core (100) Ox1 Location -10/Materials Parts ------- > --- POWER (1) -------- (None) > --- PROPULSION (2) --- (None) > --- UTILITY (2) ------ Small Storage Unit Seismic Analyzer > --- WEAPON (2) ------- Light Assault Rifle > --- INVENTORY (6) ---- Ion Engine Compact Wheel Compact Wheel Compact Wheel Peak State ------------ > --- POWER ------------ Ion Engine > --- PROPULSION ------- Wheel Compact Wheel > --- UTILITY ---------- Small Storage Unit Seismic Analyzer > --- WEAPON ----------- EM Pulse Gun Small Laser > --- INVENTORY -------- Ion Engine Compact Wheel Compact Wheel Compact Wheel Medium Laser [Rating: 7] Favorites ----------- Power Ion Engine Engine Ion Engine Propulsion Wheel Wheel Wheel Utility Small Storage Unit Storage Small Storage Unit Processor Seismic Analyzer Weapon Small Laser Energy Gun Small Laser Ballistic Gun Light Assault Rifle Build | -11 -10 ------- Run | Scr Mat Slots Evolved . | . . Power . | . . Propulsion . | . . Utility . | . . Weapon . | . . Parts Attached 10 | 6 4 Power 1 | 1 . Engine 1 | 1 . Core . | . . Reactor . | . . Propulsion 2 | 2 . Treads . | . . Leg . | . . Wheel 2 | 2 . Hover . | . . Flight . | . . Utility 2 | 1 1 Device . | . . Storage 1 | 1 . Processor 1 | . 1 Hackware . | . . Protection . | . . Artifact . | . . Weapon 5 | 2 3 Energy Gun 3 | 2 1 Energy Cannon . | . . Ballistic Gun 2 | . 2 Ballistic Cannon . | . . Launcher . | . . Special Weapon . | . . Impact Weapon . | . . Slashing Weapon . | . . Piercing Weapon . | . . Special Melee Weapon . | . . Unidentified Prototypes . | . . Parts Lost 7 | . 7 Power 1 | . 1 Propulsion 2 | . 2 Utility . | . . Weapon 4 | . 4 Highest Loss Streak 7 | . 7 Average Slot Usage (%) 81 | . 81 Engine 11 | . 11 Wheel 24 | . 24 Storage 14 | . 14 Processor 8 | . 8 Energy Gun 18 | . 18 Ballistic Gun 3 | . 3 Naked Turns . | . . Heaviest Build 12 | 12 12 Greatest Support 26 | 26 26 Greatest Overweight (x) . | . . Average Overweight (x) . | . . Largest Inventory Capacity 6 | 6 6 Average Capacity 5 | 5 6 Most Carried 6 | 6 6 Average Carried 4 | 3 4 Final Capacity 6 | 6 6 Final Carried 6 | 6 4 Class Distribution -------------------- 100% | Mutant Dominant Class ---------------- Mutant | -10/Materials Resources | -11 -10 ----------- Run | Scr Mat Matter Collected 263 | 260 3 Remotely . | . . Salvage Created 67 | . 67 Parts 13 | . 13 Haulers Intercepted . | . . Recyclers Shooed 1 | . 1 Parts Field Recycled . | . . Retrieved Matter . | . . Parts Self-Destructed . | . . Prevented . | . . Kills | -11 -10 ------- Run | Scr Mat Combat Hostiles Destroyed 5 | . 5 Guns 5 | . 5 Classes Destroyed 1 | . 1 Swarmer 5 | . 5 Best Kill Streak 3 | . 3 Combat Bots Only 3 | . 3 Max Kills in Single Turn 1 | . 1 Gunslinging . | . . Exploded . | . . Melee . | . . Uniques/NPCs Destroyed . | . . Combat | -11 -10 -------- Run | Scr Mat Damage Taken 711 | . 711 Core 256 | . 256 Absorbed by Shields . | . . Core Remaining (%) 100 | 100 . Volleys Fired 21 | . 21 Largest 2 | . 2 Hottest 90 | . 90 Shots Fired 27 | . 27 Gun 27 | . 27 Cannon . | . . Launcher . | . . Special . | . . Kinetic 11 | . 11 Thermal 11 | . 11 Explosive . | . . Electromagnetic 5 | . 5 Robot Hit Streak 10 | . 10 Robot Miss Streak 3 | . 3 Penetration Max . | . . Secondary Targets 3 | . 3 Max Gunslinging Chain 1 | . 1 Shots Hit Robots 17 | . 17 Core Hits 6 | . 6 Critical Hits . | . . Critical Kills . | . . Critical Parts Destroyed . | . . Melee Attacks . | . . Impact . | . . Slashing . | . . Piercing . | . . Sneak Attacks . | . . Combat Hostiles . | . . Follow-up Attacks . | . . Damage Inflicted 224 | . 224 Guns 219 | . 219 Cannons . | . . Explosions . | . . Melee . | . . Ramming 5 | . 5 Kinetic 43 | . 43 Thermal 131 | . 131 Explosive . | . . Electromagnetic 45 | . 45 Impact . | . . Slashing . | . . Piercing . | . . Highest Corruption . | . . Average Corruption . | . . Corruption Purged . | . . Overload Shots . | . . Overflow Damage . | . . Projectiles . | . . Explosions . | . . Melee . | . . Knockbacks . | . . Impact . | . . Kinetic . | . . Secondary . | . . Self-Inflicted Damage 2 | . 2 Shots . | . . Rammed 1 | . 1 Targets Rammed 1 | . 1 Kicked . | . . Crushed . | . . Highest Temperature 142 | . 142 Average Temperature 72 | . 72 Received Heat Transfer . | . . Siege Activations . | . . Robots Corrupted . | . . Combat Hostiles . | . . Parts Fried . | . . Impact Corruptions . | . . Robots Melted . | . . Combat Hostiles . | . . Parts Melted . | . . Heat Transferred 359 | . 359 Parts Sabotaged . | . . Parts Stolen . | . . Parts Stripped . | . . Power Chain Reactions . | . . Missiles Intercepted . | . . Alert | -11 -10 ------- Run | Scr Mat Peak Influence 60 | . 60 Average Influence 11 | . 18 Maximum Alert Level . | . . Low Security (%) 100 | 100 100 Level 1 . | . . Level 2 . | . . Level 3 . | . . Level 4 . | . . Level 5 . | . . High Security . | . . Max Security . | . . Squads Dispatched . | . . Investigation . | . . Extermination . | . . Reinforcement . | . . Assault . | . . Garrison . | . . Intercept . | . . Construction Impeded . | . . Haulers Reinforced . | . . Stealth | -11 -10 --------- Run | Scr Mat Distress Signals . | . . Communications Jammed . | . . Distress Signals . | . . Times Spotted 10 | . 10 Peak Tracking Total 7 | . 7 Tactical Retreats 2 | . 2 Traps | -11 -10 ------- Run | Scr Mat Traps Triggered . | . . Indirectly . | . . Trap Hack Attempts . | . . Triggered . | . . Disarmed . | . . Reprogrammed . | . . Reused . | . . Traps Extracted . | . . Installed . | . . Triggered . | . . Machines | -11 -10 ---------- Run | Scr Mat Machines Disabled . | . . Max in Single Turn . | . . Machines Sabotaged . | . . Garrisons Compromised . | . . Overloaded Fab Kills . | . . Fab Network Shutdowns . | . . Hacking | -11 -10 --------- Run | Scr Mat Machines Accessed 1 | . 1 Terminals 1 | . 1 Fabricators . | . . Repair Stations . | . . Recycling Units . | . . Scanalyzers . | . . Garrison Access . | . . Total Hacks 3 | . 3 Successful 2 | . 2 Failed 1 | . 1 Catastrophic . | . . Database Lockouts . | . . Manual 3 | . 3 Terminals 3 | . 3 Fabricators . | . . Repair Stations . | . . Recycling Units . | . . Scanalyzers . | . . Garrison Access . | . . Terminal Hacks . | . . Fabricator Hacks . | . . Repair Station Hacks . | . . Recycling Unit Hacks . | . . Scanalyzer . | . . Garrison Access Hacks . | . . Unauthorized Hacks 5 | . 5 Terminals 2 | . 2 Botnet 1 | . 1 Operators 1 | . 1 Fabricators . | . . Repair Stations . | . . Recycling Units . | . . Scanalyzers . | . . Garrison Access . | . . Data Cores Recovered . | . . Used . | . . Hacking Detections 1 | . 1 Full Trace Events . | . . Feedback Events . | . . Feedback Blocked . | . . Robot Schematics Acquired . | . . Robots Built . | . . Matter . | . . Time . | . . Total Robot Build Rating . | . . Part Schematics Acquired . | . . Parts Built . | . . Matter . | . . Time . | . . Total Part Build Rating . | . . Parts Repaired . | . . Time . | . . Parts Recycled . | . . Recycled Matter . | . . Retrieved Matter . | . . Retrieved Components . | . . Parts Scanalyzed . | . . Part Schematics Acquired . | . . Parts Damaged . | . . Bothacking | -11 -10 ------------ Run | Scr Mat Used RIF Installer . | . . Robots Hacked . | . . Non-combat . | . . Combat . | . . Robot Hacks Applied . | . . Relay Couplers Released . | . . Robots Rewired . | . . Allies Hacked . | . . Hacks Repelled . | . . Allies | -11 -10 -------- Run | Scr Mat Total Allies . | . . Largest Group . | . . Highest-Rated Group . | . . Highest-Rated Ally . | . . Total Orders . | . . Ally Attacks . | . . Total Damage . | . . Kills . | . . Allies Corrupted . | . . Allies Melted . | . . Intel | -11 -10 ------- Run | Scr Mat Robot Analysis Total . | . . Derelict Logs Recovered . | . . Drone Launches . | . . Drone Recoveries . | . . Exploration | -11 -10 ------------- Run | Scr Mat Turns Passed 205 | 75 130 Spaces Moved 149 | 69 80 Core 2 | 2 . Treads . | . . Legs . | . . Wheels 147 | 67 80 Hover . | . . Flight . | . . Fastest Speed 50 | 50 90 Average Speed 89 | 87 90 Slowest Speed 100 | 90 100 Overloaded Moves . | . . Propulsion Burnouts . | . . Robots Hopped . | . . Cave-ins Triggered . | . . Exploration Rate (%) 12 | 3 21 Regions Visited 1 Branch Regions . Pre-discovered Areas . | . . Known Exits Taken . | . . Unknown Exits Taken 1 | 1 . Scrap Searched . | . . Spaces Dug . | . . Terrain Destroyed . | . . Melee . | . . Projectile . | . . AOE . | . . Actions | -11 -10 --------- Run | Scr Mat Total 193 | 80 113 Wait . | . . Move 148 | 68 80 Hop . | . . Pick Up 9 | 6 3 Fast Attach 9 | 6 3 Attach 1 | . 1 Detach . | . . Swap . | . . Drop 4 | . 4 Fire 21 | . 21 Melee . | . . Ram 1 | . 1 Kick . | . . Crush . | . . Escape Stasis . | . . Rewire . | . . Trap . | . . Miscellaneous . | . . Route ------- -11/Scrapyard -10/Materials (discovered 1 exit: [*Min]) History --------- Turn | Location | Event 13 | -11/Scrapyard | Discovered new exit (range 16) 76 | -11/Scrapyard | Entered Materials 94 | -10/Materials | Discovered new exit (range 13) 183 | -10/Materials | Core integrity fell below 50% 198 | -10/Materials | Core integrity fell below 20% 206 | -10/Materials | Destroyed by S-10 Pest with Light Assault Rifle Last Messages --------------- 00154_ Switching to secondary target: S-10 Pest. 00155_ EM Pulse Gun destroyed. 00161_ Destroyed Flight Unit. 00163_ K-01 Serf collects debris. 00166_ R-06 Scavenger collects Lgt. Assault Rifle. 00166_ S-10 Pest overheating. 00167_ Med. Laser destroyed. 00168_ K-01 Serf collects debris. 00173_ Slammed into S-10 Pest. 00177_ S-10 Pest heat damages Lgt. Ion Engine. 00177_ K-01 Serf collects debris. 00178_ Acquired Lgt. Assault Rifle. 00180_ Ion Engine destroyed. 00183_ Wheel destroyed. 00183_ S-10 Pest destroyed. 00186_ Acquired 3 matter. 00192_ Acquired Lgt. Assault Rifle. 00192_ Com. Wheel destroyed. 00195_ Lgt. Assault Rifle destroyed. 00205_ S-10 Pest destroyed. Map ----- +----------------------------------------------------+ | | | ?????????????????????????????????????????????????? | | ?????????????????????????????????????????????????? | | ?????????????????????????????????????????????????? | | ?????????????????????????????????????????????????? | | ?????????????????????????????????????????????????? | | ?????????????????????????????????????????????????? | | ?????????????????????????????????????????????????? | | ?????????????????????????????????????????????????? | | ?????????????????????????????????????????????????? | | ?????????????????????????????????????????????????? | | ?????????????????????????????????????????????????? | | ??????????????? ????????????????????????????????? | | ?????????????# #???????????????????????????????? | | ?????????????# ???????????????????????????????? | | ?????????????# ???????????????????????????????? | | ????????????## ???????????????????????????????? | | ????????????"" """????????????????????????????? | | ????? ?????"Y """ ???????????????????????????? | | ?????? ?????" """ ???????????????????????????? | | ??????? ##### ????????????????????????????? | | ??????? ! ????????????????????????????? | | ????????? "?????????????????????????????? | | ???????? """ "?????????????????????????????? | | ?????# Y" ########??????????????????????? | | ?????# """ # T= @#??????????????????????? | | ?????# #s*%= #??????????????????????? | | ?????# =*/s||![ #??????????????????????? | | ?????????####### *%# |!! s/ #?????????????????? | | ???????????????#%==# |!! ## #?????????????????? | | ???????????????#*% # #??????????????????????? | | ???????????????# ########??????????????????????? | | ???????????????# #?????????????????????????????? | | ???????????????# #?????????????????????????????? | | ????????????#### ##????????????????????????????? | | ????????????#" #????????????????????????????? | | ????????????#"" #????????????????????????????? | | ????????????#|| #????????????????????????????? | | ????????????#"" < #????????????????????????????? | | ????????????#!! #????????????????????????????? | | ????????????#"" #????????????????????????????? | | ????????????#" #????????????????????????????? | | ????????????#### ##????????????????????????????? | | ################ #?????????????????????????????? | | ##########????????????????????? | | # #????????????????????? | | ??? + """ #????????????????????? | | ????### ### [ # """ #????????????????????? | | ??????????# [ # """ #????????????????????? | | ??????????# # #????????????????????? | +----------------------------------------------------+ Best States ------------- Heat Dissipation 25 Energy Generation 10 Energy Capacity 250 Matter Stores 300 Matter Capacity 300 Sight Range 16 Terrain Scan Density 60 Evasion (%) 44 Item Schematics ----------------- None Robot Schematics ------------------ None Fabricated ------------ Nothing Alien Tech Used ----------------- None Achievements -------------- None Challenges ------------ None Game ------ Seed FieldPulseFemtoactuators Manual? 0 Play Time 00:04:20 Cumulative 21.2 hours Start 2020.03.22 @ 12:21:41 End 2020.03.22 @ 12:24:20 Sessions 1 Manual Loads 0 Difficulty Rogue Special Mode None Game No. 23 Rogue 23 Adventurer 0 Explorer 0 Win Type - Total 0 Types 0/0/0/0/0/0/0 Lore% 13 Gallery% 32 Achievement% 25 Wizard Run 0 Options --------- ASCII 0 Keyboard 0 Movement Arrows Keybinds 0 Fullscreen 2 Font 16/SmallcapsGlow Map View 82x53 Tactical HUD 1 Map Filters NONE Filters NONE Steam 0 RUN: 02d55611-432f-47f8-9edd-d106397f3838